[Event "Lliga Catalana 2024"]
[Site "Catalonia"]
[Date "2024.01.27"]
[Round "2.1"]
[White "Aroshidze, Levan"]
[Black "Gonzalez Garcia, Jose"]
[Result "1-0"]
[ECO "C13"]
[WhiteElo "2538"]
[BlackElo "2451"]
[Annotator "RC"]
[PlyCount "106"]
[EventDate "2024.01.18"]
[EventType "team-tourn"]
[EventCountry "ESP"]
[SourceTitle "playchess.com"]
[Source "ChessBase"]
[SourceQuality "1"]
[TimeControl "5400+30"]

1. e4 {[%emt 0:00:04]} e6 {[%emt 0:00:31]} 2. d4 {[%emt 0:00:09]} d5 {[%emt 0:00:06]} 3. Nc3 {[%emt 0:00:06]} Nf6 {[%emt 0:00:05]} 4. Bg5 {[%emt 0:01:12]} dxe4 {[%emt 0:01:18]} 5. Nxe4 {[%emt 0:00:08]} Nbd7 {[%emt 0:00:04]} 6. Nf3 {[%emt 0:00:44]} h6 {[%emt 0:00:07]} 7. Bxf6 {[%emt 0:00:43]} Nxf6 {[%emt 0:00:14]} 8. Bd3 {[%emt 0:00:20]} Nxe4 {[%emt 0:01:36]} 9. Bxe4 {[%emt 0:00:07]} c5 {[%emt 0:01:43]} 10. Qe2 Qa5+ {[%emt 0:00:30]} 11. c3 cxd4 {[%emt 0:00:30]} 12. Nxd4 Be7 {[%emt 0:00:30]} 13. Nc6 Qc5 {[%emt 0:00:30]} 14. Nxe7 Qxe7 {[%emt 0:00:30]} 15. O-O-O O-O {[%emt 0:00:30]} 16. Bc2 e5 {[%emt 0:00:30]} 17. f4 Qf6 {[%emt 0:00:30]} 18. Qxe5 Qxe5 {[%emt 0:00:30]} 19. fxe5 Be6 {[%emt 0:00:30]} 20. Be4 Rab8 {[%emt 0:00:30]} 21. Rhe1 Rfe8 {[%emt 0:00:30]} 22. Bd5 Bxd5 {[%emt 0:00:30]} 23. Rxd5 Re7 {[%emt 0:00:30]} 24. Kc2 Rc8 {[%emt 0:00:30]} 25. Kd3 Rc6 {[%emt 0:00:30]} 26. Re4 Rg6 {[%emt 0:00:30]} 27. g3 Rge6 {[%emt 0:00:30]} 28. a4 h5 {[%emt 0:00:30]} 29. a5 g5 {[%emt 0:00:30]} 30. b4 Kg7 {[%emt 0:00:30]} 31. h3 Rc7 {[%emt 0:00:30]} 32. c4 b6 {[%emt 0:00:30]} 33. a6 b5 {[%emt 0:00:30]} 34. cxb5 Rc1 {[%emt 0:00:30]} 35. Kd4 Rd1+ {[%emt 0:00:30]} 36. Kc5 Rc1+ {[%emt 0:00:30]} 37. Rc4 Re1 {[%emt 0:00:30]} 38. Rc3 Re4 {[%emt 0:00:30]} 39. Rcd3 Re1 {[%emt 0:00:30]} 40. Rd6 R6xe5+ {[%emt 0:00:30]} 41. R3d5 Rc1+ {[%emt 0:00:30]} 42. Kd4 Re2 {[%emt 0:00:30]} 43. Rxg5+ Kf8 {[%emt 0:00:30]} 44. Rgd5 Rb2 {[%emt 0:00:30]} 45. Rd8+ Kg7 {[%emt 0:00:30]} 46. Ke5 Rxb4 {[%emt 0:00:30]} 47. Rb8 Re1+ {[%emt 0:00:30]} 48. Kd6 Rc4 {[%emt 0:00:30]} 49. Rb7 Re6+ {[%emt 0:00:30]} 50. Kd7 Rce4 {[%emt 0:00:30]} 51. Kc8 Re8+ {[%emt 0:00:30]} 52. Rd8 Rc4+ {[%emt 0:00:30]} 53. Rc7 Rxd8+ {[%emt 0:00:30]} 1-0

[Event "Lliga Catalana 2024"]
[Site "Catalonia"]
[Date "2024.01.27"]
[Round "2.2"]
[White "Aloma Vidal, Robert"]
[Black "Chigaev, Maksim"]
[Result "1/2-1/2"]
[ECO "A05"]
[WhiteElo "2446"]
[BlackElo "2622"]
[Annotator "RC"]
[PlyCount "134"]
[EventDate "2024.01.18"]
[EventType "team-tourn"]
[EventCountry "ESP"]
[SourceTitle "playchess.com"]
[Source "ChessBase"]
[SourceQuality "1"]
[TimeControl "5400+30"]

1. Nf3 {[%emt 0:00:05]} Nf6 {[%emt 0:00:10]} 2. g3 {[%emt 0:00:21]} d5 {[%emt 0:03:46]} 3. Bg2 {[%emt 0:00:29]} e6 {[%emt 0:01:06]} 4. O-O {[%emt 0:03:52]} b5 {[%emt 0:01:43]} 5. d3 {[%emt 0:05:23]} Bb7 {[%emt 0:00:37]} 6. e4 {[%emt 0:03:37]} Be7 {[%emt 0:08:39]} 7. exd5 {[%emt 1:20:13]} exd5 {[%emt 0:17:29]} 8. Nd4 {[%emt 0:00:00]} Qd7 {[%emt 0:06:29]} 9. Qf3 {[%emt 0:00:00]} O-O {[%emt 0:00:16]} 10. Nf5 {[%emt 0:00:00]} Bd8 {[%emt 0:01:43]} 11. Nd2 {[%emt 0:00:00]} Nc6 {[%emt 0:54:02]} 12. Nb3 {[%emt 0:00:00]} Ne5 {[%emt 0:00:00]} 13. Qf4 {[%emt 0:00:00]} Ng6 {[%emt 0:00:00]} 14. Qf3 {[%emt 0:00:00]} Bc8 {[%emt 0:00:00]} 15. Bh3 {[%emt 0:00:00]} Qc6 {[%emt 0:02:00]} 16. Be3 {[%emt 0:00:00]} a5 {[%emt 0:00:00]} 17. Nfd4 {[%emt 0:00:00]} Qe8 {[%emt 0:00:00]} 18. Bxc8 {[%emt 0:00:00]} Rxc8 {[%emt 0:00:00]} 19. Rfe1 {[%emt 0:06:00]} Qd7 {[%emt 0:00:00]} 20. Nc5 {[%emt 0:00:00]} Qh3 {[%emt 0:00:00]} 21. Qg2 {[%emt 0:00:00]} Qxg2+ {[%emt 0:00:00]} 22. Kxg2 {[%emt 0:01:30]} c6 {[%emt 0:00:00]} 23. Nf5 {[%emt 0:00:00]} a4 {[%emt 0:00:00]} 24. Bd4 {[%emt 0:01:00]} h5 {[%emt 0:00:27]} 25. b3 {[%emt 0:00:00]} Ra8 {[%emt 0:01:44]} 26. bxa4 {[%emt 0:00:00]} bxa4 {[%emt 0:00:15]} 27. Rab1 {[%emt 0:00:00]} Re8 {[%emt 0:01:27]} 28. Rxe8+ {[%emt 0:00:00]} Nxe8 {[%emt 0:00:02]} 29. Rb7 {[%emt 0:00:00]} Bf6 {[%emt 0:00:22]} 30. Rb6 {[%emt 0:02:02]} Nd6 {[%emt 0:01:54]} 31. Bxf6 {[%emt 0:00:37]} Nxf5 {[%emt 0:00:04]} 32. Bc3 {[%emt 0:00:22]} d4 {[%emt 0:01:21]} 33. Bd2 {[%emt 0:00:27]} Re8 {[%emt 0:00:47]} 34. Rxc6 {[%emt 0:00:56]} a3 {[%emt 0:00:19]} 35. Ne4 {[%emt 0:00:13]} Rb8 {[%emt 0:00:08]} 36. Bc1 {[%emt 0:00:22]} f6 {[%emt 0:01:40]} 37. Bxa3 {[%emt 0:00:34]} Ra8 {[%emt 0:00:00]} 38. Bb2 {[%emt 0:00:36]} Rxa2 {[%emt 0:00:03]} 39. Rc8+ {[%emt 0:00:10]} Kh7 {[%emt 0:00:14]} 40. Rb8 {[%emt 0:00:07]} Ra7 {[%emt 0:01:11]} 41. h3 {[%emt 0:01:14]} Rc7 {[%emt 0:01:02]} 42. c4 {[%emt 0:00:22]} dxc3 {[%emt 0:00:00]} 43. Bxc3 {[%emt 0:00:14]} Nge7 {[%emt 0:00:00]} 44. Rb5 {[%emt 0:00:41]} Kg6 {[%emt 0:00:14]} 45. g4 {[%emt 0:00:42]} hxg4 {[%emt 0:00:04]} 46. hxg4 {[%emt 0:00:06]} Nd6 {[%emt 0:00:40]} 47. Rb3 {[%emt 0:01:07]} Nxe4 {[%emt 0:01:28]} 48. dxe4 {[%emt 0:00:01]} Rc4 {[%emt 0:00:07]} 49. f3 {[%emt 0:00:28]} Nc6 {[%emt 0:00:02]} 50. Ra3 {[%emt 0:00:16]} Nd4 {[%emt 0:00:16]} 51. Bxd4 {[%emt 0:01:04]} Rxd4 {[%emt 0:00:02]} 52. Ra7 {[%emt 0:00:09]} Rb4 {[%emt 0:00:10]} 53. Kg3 {[%emt 0:00:03]} Rb3 {[%emt 0:00:07]} 54. Kf4 {[%emt 0:00:38]} Rc3 {[%emt 0:00:28]} 55. Ra1 {[%emt 0:00:42]} Rb3 {[%emt 0:00:19]} 56. Rg1 {[%emt 0:00:06]} Rb5 {[%emt 0:00:17]} 57. Rd1 {[%emt 0:00:11]} Rb3 {[%emt 0:00:16]} 58. Rd6 {[%emt 0:00:07]} Rb4 {[%emt 0:00:18]} 59. g5 {[%emt 0:00:13]} Rb5 {[%emt 0:00:46]} 60. Rd5 {[%emt 0:00:54]} fxg5+ {[%emt 0:00:53]} 61. Kg4 {[%emt 0:01:56]} Rxd5 {[%emt 0:00:17]} 62. exd5 {[%emt 0:00:02]} Kf6 {[%emt 0:00:07]} 63. d6 {[%emt 0:00:27]} Ke6 {[%emt 0:00:03]} 64. Kxg5 {[%emt 0:00:04]} Kxd6 {[%emt 0:00:04]} 65. Kg6 {[%emt 0:00:08]} Ke5 {[%emt 0:00:04]} 66. Kxg7 {[%emt 0:00:04]} Kf4 {[%emt 0:00:03]} 67. Kf6 {[%emt 0:00:04]} Kxf3 {[%emt 0:00:04]} 1/2-1/2

[Event "Lliga Catalana 2024"]
[Site "Catalonia"]
[Date "2024.01.27"]
[Round "2.2"]
[White "Narciso Dublan, Marc"]
[Black "Glek, Igor"]
[Result "1-0"]
[ECO "D04"]
[WhiteElo "2420"]
[BlackElo "2423"]
[Annotator "RC"]
[PlyCount "101"]
[EventDate "2024.01.18"]
[EventType "team-tourn"]
[EventCountry "ESP"]
[SourceTitle "playchess.com"]
[Source "ChessBase"]
[SourceQuality "1"]
[TimeControl "5400+30"]

1. d4 {[%emt 0:00:05]} d5 {[%emt 0:00:05]} 2. Nf3 {[%emt 0:00:16]} Nf6 {[%emt 0:00:20]} 3. e3 {[%emt 0:00:12]} c5 {[%emt 0:06:09]} 4. dxc5 {[%emt 0:00:19]} e6 {[%emt 0:00:24]} 5. b4 {[%emt 0:00:08]} a5 {[%emt 0:00:47]} 6. c3 {[%emt 0:00:05]} axb4 {[%emt 0:00:11]} 7. cxb4 {[%emt 0:00:06]} b6 {[%emt 0:00:03]} 8. Bb5+ {[%emt 0:00:17]} Bd7 {[%emt 0:00:18]} 9. Bxd7+ {[%emt 0:00:09]} Nbxd7 {[%emt 0:00:14]} 10. a4 {[%emt 0:00:54]} bxc5 {[%emt 0:00:13]} 11. b5 {[%emt 0:00:05]} Bd6 {[%emt 0:00:02]} 12. Bb2 {[%emt 0:00:21]} g5 {[%emt 0:00:16]} 13. Qe2 {[%emt 0:05:59]} g4 {[%emt 0:12:29]} 14. Nfd2 {[%emt 0:01:02]} Be5 {[%emt 0:00:05]} 15. Bxe5 {[%emt 0:03:41]} Nxe5 {[%emt 0:00:02]} 16. O-O {[%emt 0:00:45]} Rg8 {[%emt 0:01:25]} 17. f4 {[%emt 0:03:30]} gxf3 {[%emt 0:02:58]} 18. Nxf3 {[%emt 0:00:11]} Qd6 {[%emt 0:00:03]} 19. Nbd2 {[%emt 0:02:24]} Nfg4 {[%emt 0:16:41]} 20. a5 {[%emt 0:18:51]} Ke7 {[%emt 0:06:27]} 21. h3 {[%emt 0:19:41]} Nxf3+ {[%emt 0:01:02]} 22. Nxf3 {[%emt 0:00:07]} Nf6 {[%emt 0:00:14]} 23. Qf2 {[%emt 0:11:24]} Ne4 {[%emt 0:10:36]} 24. Qh4+ {[%emt 0:00:17]} Kd7 {[%emt 0:01:05]} 25. Ra2 {[%emt 0:07:01]} Rg7 {[%emt 0:06:47]} 26. b6 {[%emt 0:01:26]} Kc6 {[%emt 0:01:34]} 27. Rb1 {[%emt 0:08:18]} Kb7 {[%emt 0:06:46]} 28. a6+ {[%emt 0:06:19]} Rxa6 {[%emt 0:01:57]} 29. Rxa6 {[%emt 0:00:08]} Kxa6 {[%emt 0:00:02]} 30. b7 {[%emt 0:00:14]} Rg8 {[%emt 0:00:05]} 31. Qe1 {[%emt 0:01:04]} Rb8 {[%emt 0:04:18]} 32. Qe2+ {[%emt 0:02:53]} Ka7 {[%emt 0:00:03]} 33. Qb2 {[%emt 0:00:07]} Qa6 {[%emt 0:00:47]} 34. Ra1 {[%emt 0:00:16]} Rxb7 {[%emt 0:00:07]} 35. Rxa6+ {[%emt 0:00:07]} Kxa6 {[%emt 0:00:01]} 36. Qh8 {[%emt 0:02:03]} Ka7 {[%emt 0:02:46]} 37. Qxh7 {[%emt 0:01:16]} c4 {[%emt 0:00:19]} 38. Qh8 {[%emt 0:00:38]} c3 {[%emt 0:01:09]} 39. Nd4 {[%emt 0:00:12]} Rb1+ {[%emt 0:03:12]} 40. Kh2 {[%emt 0:00:06]} Nd2 {[%emt 0:00:03]} 41. Kg3 {[%emt 0:03:41]} f6 {[%emt 0:07:02]} 42. Qh7+ {[%emt 0:00:27]} Rb7 {[%emt 0:00:40]} 43. Qd3 {[%emt 0:01:16]} Ne4+ {[%emt 0:02:05]} 44. Kh2 {[%emt 0:00:21]} Rb2 {[%emt 0:00:28]} 45. h4 {[%emt 0:01:25]} f5 {[%emt 0:05:03]} 46. h5 {[%emt 0:00:43]} e5 {[%emt 0:05:06]} 47. Nb5+ {[%emt 0:00:42]} Kb8 {[%emt 0:00:41]} 48. Qxd5 {[%emt 0:00:24]} Nf2 {[%emt 0:00:33]} 49. Qxe5+ {[%emt 0:00:44]} Kb7 {[%emt 0:00:33]} 50. Nd6+ {[%emt 0:01:05]} Ka6 {[%emt 0:00:13]} 51. Qxc3 {[%emt 0:00:11]} 1-0

[Event "Lliga Catalana 2024"]
[Site "Catalonia"]
[Date "2024.01.27"]
[Round "2.3"]
[White "Khamrakulov, Ibragim S."]
[Black "Oms Fuentes, Lluis"]
[Result "1-0"]
[ECO "B22"]
[WhiteElo "2408"]
[BlackElo "2329"]
[Annotator "RC"]
[PlyCount "71"]
[EventDate "2024.01.18"]
[EventType "team-tourn"]
[EventCountry "ESP"]
[SourceTitle "playchess.com"]
[Source "ChessBase"]
[SourceQuality "1"]
[TimeControl "5400+30"]

1. e4 {[%emt 0:00:26]} c5 {[%emt 0:00:53]} 2. c3 {[%emt 0:00:10]} Nf6 {[%emt 0:00:55]} 3. e5 {[%emt 0:01:19]} Nd5 {[%emt 0:00:08]} 4. Bc4 {[%emt 0:00:13]} Nb6 {[%emt 0:06:07]} 5. Bb3 {[%emt 0:01:50]} d5 {[%emt 0:05:16]} 6. exd6 {[%emt 0:01:31]} exd6 {[%emt 0:00:45]} 7. h3 {[%emt 0:17:32]} Be7 {[%emt 0:02:12]} 8. Nf3 {[%emt 0:00:14]} Bf5 {[%emt 0:01:06]} 9. d4 {[%emt 0:02:44]} N8d7 {[%emt 0:02:03]} 10. Na3 {[%emt 0:08:34]} O-O {[%emt 0:00:40]} 11. O-O {[%emt 0:00:20]} Rc8 {[%emt 0:05:40]} 12. Re1 {[%emt 0:04:21]} c4 {[%emt 0:05:06]} 13. Nxc4 {[%emt 0:11:20]} Nxc4 {[%emt 0:02:09]} 14. Qe2 {[%emt 0:00:09]} Be6 {[%emt 0:00:38]} 15. d5 {[%emt 0:00:44]} Bxd5 {[%emt 0:00:11]} 16. Qxe7 {[%emt 0:00:10]} Bxf3 {[%emt 0:00:28]} 17. Qxd8 {[%emt 0:00:11]} Rfxd8 {[%emt 0:00:30]} 18. gxf3 {[%emt 0:00:08]} Nde5 {[%emt 0:05:53]} 19. Kg2 {[%emt 0:00:25]} d5 {[%emt 0:03:01]} 20. Bxc4 {[%emt 0:02:58]} Nxc4 {[%emt 0:00:14]} 21. Re7 {[%emt 0:02:36]} b6 {[%emt 0:32:48]} 22. Rxa7 {[%emt 0:01:07]} Rc6 {[%emt 0:03:19]} 23. b3 {[%emt 0:14:20]} Nd6 {[%emt 0:03:08]} 24. Be3 {[%emt 0:01:40]} Nf5 {[%emt 0:08:19]} 25. Rd1 {[%emt 0:01:18]} h5 {[%emt 0:01:21]} 26. Rd3 {[%emt 0:00:41]} Rg6+ {[%emt 0:01:48]} 27. Kf1 {[%emt 0:03:23]} Rdd6 {[%emt 0:00:23]} 28. Bf4 {[%emt 0:00:48]} Rd8 {[%emt 0:03:22]} 29. Rb7 {[%emt 0:01:22]} Rc6 {[%emt 0:00:48]} 30. Rc7 {[%emt 0:01:07]} Re6 {[%emt 0:00:36]} 31. a4 {[%emt 0:01:20]} d4 {[%emt 0:03:02]} 32. Bd2 {[%emt 0:02:51]} Rd5 {[%emt 0:01:41]} 33. b4 {[%emt 0:01:12]} Rdd6 {[%emt 0:01:30]} 34. cxd4 {[%emt 0:01:25]} Nxd4 {[%emt 0:00:29]} 35. Bf4 {[%emt 0:00:44]} Rd5 {[%emt 0:00:47]} 36. Rc4 {[%emt 0:00:27]} 1-0

[Event "Lliga Catalana 2024"]
[Site "Catalonia"]
[Date "2024.01.27"]
[Round "2.3"]
[White "Prie, Eric"]
[Black "Rahal, Michael A"]
[Result "1/2-1/2"]
[ECO "C02"]
[WhiteElo "2346"]
[BlackElo "2312"]
[Annotator "RC"]
[PlyCount "71"]
[EventDate "2024.01.18"]
[EventType "team-tourn"]
[EventCountry "ESP"]
[SourceTitle "playchess.com"]
[Source "ChessBase"]
[SourceQuality "1"]
[TimeControl "5400+30"]

1. e4 {[%emt 0:00:04]} e6 {[%emt 0:01:29]} 2. d4 {[%emt 0:00:09]} d5 {[%emt 0:00:02]} 3. e5 {[%emt 0:00:08]} c5 {[%emt 0:00:33]} 4. c3 {[%emt 0:00:09]} Nc6 {[%emt 0:00:34]} 5. Nf3 {[%emt 0:00:10]} Nge7 {[%emt 0:01:25]} 6. Na3 {[%emt 0:03:50]} cxd4 {[%emt 0:05:16]} 7. cxd4 {[%emt 0:00:11]} Nf5 {[%emt 0:00:05]} 8. Nc2 {[%emt 0:00:37]} Qa5+ {[%emt 0:01:01]} 9. Bd2 {[%emt 0:00:45]} Qb6 {[%emt 0:00:10]} 10. Bc3 {[%emt 0:01:48]} a5 {[%emt 0:00:44]} 11. a3 {[%emt 0:00:54]} Be7 {[%emt 0:01:54]} 12. Bd3 {[%emt 0:13:04]} O-O {[%emt 0:00:44]} 13. O-O {[%emt 0:02:06]} f6 {[%emt 0:03:54]} 14. Bxf5 {[%emt 0:02:19]} exf5 {[%emt 0:00:20]} 15. Ne3 {[%emt 0:07:52]} Be6 {[%emt 0:01:04]} 16. Qd3 {[%emt 0:03:34]} g6 {[%emt 0:12:11]} 17. h3 {[%emt 0:00:33]} Rad8 {[%emt 0:01:04]} 18. exf6 {[%emt 0:07:56]} Bxf6 {[%emt 0:02:31]} 19. Rfe1 {[%emt 0:00:09]} a4 {[%emt 0:12:41]} 20. Qd2 {[%emt 0:02:25]} Rfe8 {[%emt 0:03:08]} 21. Nc2 {[%emt 0:13:01]} Bf7 {[%emt 0:01:00]} 22. Nb4 {[%emt 0:00:44]} Re4 {[%emt 0:05:29]} 23. Nxc6 {[%emt 0:05:13]} Qxc6 {[%emt 0:00:24]} 24. Ne5 {[%emt 0:01:12]} Bxe5 {[%emt 0:02:47]} 25. dxe5 {[%emt 0:00:07]} d4 {[%emt 0:01:40]} 26. f3 {[%emt 0:00:46]} Rxe1+ {[%emt 0:05:00]} 27. Rxe1 {[%emt 0:00:17]} Bb3 {[%emt 0:04:57]} 28. e6 {[%emt 0:08:08]} Bxe6 {[%emt 0:02:15]} 29. Bxd4 {[%emt 0:00:13]} Qd7 {[%emt 0:01:54]} 30. Qe3 {[%emt 0:02:48]} Qxd4 {[%emt 0:06:44]} 31. Qxd4 {[%emt 0:00:05]} Rxd4 {[%emt 0:00:06]} 32. Rxe6 {[%emt 0:00:04]} b5 {[%emt 0:01:50]} 33. Rb6 {[%emt 0:01:58]} Rd5 {[%emt 0:01:35]} 34. Kf1 {[%emt 0:05:43]} f4 {[%emt 0:01:55]} 35. h4 {[%emt 0:01:29]} Kf7 {[%emt 0:04:24]} 36. Ke2 {[%emt 0:01:10]} 1/2-1/2

[Event "Lliga Catalana 2024"]
[Site "Catalonia"]
[Date "2024.01.27"]
[Round "2.4"]
[White "Tallo Dominguez, Imar"]
[Black "Vidal Zamora, Alex"]
[Result "1/2-1/2"]
[ECO "C01"]
[WhiteElo "2311"]
[BlackElo "2395"]
[Annotator "RC"]
[PlyCount "28"]
[EventDate "2024.01.18"]
[EventType "team-tourn"]
[EventCountry "ESP"]
[SourceTitle "playchess.com"]
[Source "ChessBase"]
[SourceQuality "1"]
[TimeControl "5400+30"]

1. e4 {[%emt 0:00:03]} e6 {[%emt 0:00:08]} 2. d4 {[%emt 0:01:16]} d5 {[%emt 0:00:09]} 3. exd5 {[%emt 0:01:14]} exd5 {[%emt 0:00:11]} 4. Bd3 {[%emt 0:00:23]} Bd6 {[%emt 0:01:19]} 5. h3 {[%emt 0:03:50]} Ne7 {[%emt 0:00:40]} 6. Nf3 {[%emt 0:01:10]} Bf5 {[%emt 0:01:47]} 7. O-O {[%emt 0:02:44]} O-O {[%emt 0:01:41]} 8. b3 {[%emt 0:01:20]} Nd7 {[%emt 0:05:44]} 9. c4 {[%emt 0:03:07]} c6 {[%emt 0:07:53]} 10. Nc3 {[%emt 0:10:52]} Bb4 {[%emt 0:04:43]} 11. Ne2 {[%emt 0:01:42]} Nf6 {[%emt 0:02:16]} 12. a3 {[%emt 0:04:56]} Bd6 {[%emt 0:02:19]} 13. c5 {[%emt 0:00:35]} Bc7 {[%emt 0:01:11]} 14. Bf4 {[%emt 0:11:54]} Ne4 {[%emt 0:05:18]} 1/2-1/2

[Event "Lliga Catalana 2024"]
[Site "Catalonia"]
[Date "2024.01.27"]
[Round "2.4"]
[White "Jimenez Ruano, Adrian"]
[Black "Barseghyan, Harutyun"]
[Result "1-0"]
[ECO "E27"]
[WhiteElo "2307"]
[BlackElo "2442"]
[Annotator "RC"]
[PlyCount "97"]
[EventDate "2024.01.18"]
[EventType "team-tourn"]
[EventCountry "ESP"]
[SourceTitle "playchess.com"]
[Source "ChessBase"]
[SourceQuality "1"]
[TimeControl "5400+30"]

1. d4 {[%emt 0:00:02]} Nf6 {[%emt 0:00:21]} 2. c4 {[%emt 0:00:07]} e6 {[%emt 0:00:49]} 3. Nc3 {[%emt 0:00:06]} Bb4 {[%emt 0:00:40]} 4. f3 {[%emt 0:00:13]} d5 {[%emt 0:01:51]} 5. a3 {[%emt 0:00:24]} Bxc3+ {[%emt 0:04:49]} 6. bxc3 {[%emt 0:00:03]} O-O {[%emt 0:00:41]} 7. cxd5 {[%emt 0:00:18]} exd5 {[%emt 0:04:47]} 8. e3 {[%emt 0:00:48]} Nh5 {[%emt 0:06:40]} 9. g3 {[%emt 0:22:50]} c5 {[%emt 0:05:50]} 10. Bd3 {[%emt 0:00:34]} Nc6 {[%emt 0:02:24]} 11. Ra2 {[%emt 0:10:24]} Re8 {[%emt 0:09:30]} 12. Kf1 {[%emt 0:00:50]} f5 {[%emt 0:15:58]} 13. Rg2 {[%emt 0:04:59]} Qf6 {[%emt 0:05:43]} 14. h3 {[%emt 0:09:41]} g6 {[%emt 0:12:34]} 15. Ne2 {[%emt 0:11:11]} Be6 {[%emt 0:06:35]} 16. Kg1 {[%emt 0:00:33]} Bf7 {[%emt 0:00:27]} 17. Qf1 {[%emt 0:09:30]} cxd4 {[%emt 0:01:37]} 18. exd4 {[%emt 0:03:40]} Ng7 {[%emt 0:03:20]} 19. g4 {[%emt 0:02:18]} Kh8 {[%emt 0:07:16]} 20. Bh6 {[%emt 0:04:05]} Rg8 {[%emt 0:00:43]} 21. Qc1 {[%emt 0:02:28]} Ne6 {[%emt 0:02:54]} 22. h4 {[%emt 0:05:24]} Rae8 {[%emt 0:00:59]} 23. Rhh2 {[%emt 0:00:09]} a6 {[%emt 0:02:09]} 24. a4 {[%emt 0:02:12]} Na5 {[%emt 0:02:23]} 25. Nf4 {[%emt 0:05:59]} Nxf4 {[%emt 0:00:12]} 26. Qxf4 {[%emt 0:00:36]} Nc6 {[%emt 0:00:20]} 27. gxf5 {[%emt 0:01:20]} gxf5 {[%emt 0:00:01]} 28. Bg5 {[%emt 0:01:28]} Re1+ {[%emt 0:01:29]} 29. Kf2 {[%emt 0:01:20]} Qe6 {[%emt 0:00:01]} 30. Bf6+ {[%emt 0:00:32]} Qxf6 {[%emt 0:00:04]} 31. Rxg8+ {[%emt 0:00:09]} Kxg8 {[%emt 0:00:55]} 32. Kxe1 {[%emt 0:00:15]} Be6 {[%emt 0:00:14]} 33. Rg2+ {[%emt 0:00:56]} Kf7 {[%emt 0:00:11]} 34. h5 {[%emt 0:00:30]} Ne7 {[%emt 0:00:46]} 35. Kd2 {[%emt 0:00:08]} h6 {[%emt 0:00:36]} 36. Qc7 {[%emt 0:01:01]} Qh4 {[%emt 0:00:34]} 37. Re2 {[%emt 0:01:04]} Qxh5 {[%emt 0:00:21]} 38. Qd6 {[%emt 0:00:27]} Qg6 {[%emt 0:00:37]} 39. c4 {[%emt 0:00:11]} Qf6 {[%emt 0:00:49]} 40. Re5 {[%emt 0:01:10]} dxc4 {[%emt 0:00:35]} 41. d5 {[%emt 0:00:30]} Nxd5 {[%emt 0:01:26]} 42. Bxc4 {[%emt 0:00:08]} Qg5+ {[%emt 0:00:05]} 43. Kd3 {[%emt 0:00:21]} Nf4+ {[%emt 0:00:07]} 44. Kc3 {[%emt 0:00:29]} Bxc4 {[%emt 0:00:22]} 45. Qc7+ {[%emt 0:00:49]} Kg6 {[%emt 0:00:30]} 46. Qxc4 {[%emt 0:00:23]} Nh3 {[%emt 0:01:38]} 47. Qe6+ {[%emt 0:00:20]} Qf6 {[%emt 0:00:03]} 48. Qg8+ {[%emt 0:00:13]} Kh5 {[%emt 0:00:09]} 49. Qg4# {[%emt 0:00:04]} 1-0

[Event "Lliga Catalana 2024"]
[Site "Catalonia"]
[Date "2024.01.27"]
[Round "2.5"]
[White "Fantinel, Thibault"]
[Black "Masague Artero, Guerau"]
[Result "1-0"]
[ECO "B51"]
[WhiteElo "2417"]
[BlackElo "2324"]
[Annotator "RC"]
[PlyCount "143"]
[EventDate "2024.01.18"]
[EventType "team-tourn"]
[EventCountry "ESP"]
[SourceTitle "playchess.com"]
[Source "ChessBase"]
[SourceQuality "1"]
[TimeControl "5400+30"]

1. e4 {[%emt 0:00:05]} c5 {[%emt 0:02:27]} 2. Nf3 {[%emt 0:00:06]} Nc6 {[%emt 0:00:23]} 3. Bb5 {[%emt 0:00:58]} d6 {[%emt 0:01:15]} 4. Bxc6+ {[%emt 0:01:07]} bxc6 {[%emt 0:00:09]} 5. O-O {[%emt 0:00:05]} e5 {[%emt 0:07:22]} 6. c3 {[%emt 0:00:22]} Ba6 {[%emt 0:01:24]} 7. Re1 {[%emt 0:03:31]} Ne7 {[%emt 0:07:47]} 8. d4 {[%emt 0:04:51]} Ng6 {[%emt 0:00:18]} 9. Na3 {[%emt 0:08:59]} Be7 {[%emt 0:12:20]} 10. Qa4 {[%emt 0:03:57]} Qb6 {[%emt 0:02:55]} 11. dxc5 {[%emt 0:10:46]} dxc5 {[%emt 0:00:17]} 12. Nc4 {[%emt 0:00:18]} Bxc4 {[%emt 0:09:16]} 13. Qxc4 {[%emt 0:01:26]} O-O {[%emt 0:00:15]} 14. Be3 {[%emt 0:04:22]} Qb5 {[%emt 0:07:46]} 15. Nd2 {[%emt 0:07:29]} Rfd8 {[%emt 0:00:12]} 16. Rab1 {[%emt 0:06:07]} Nf8 {[%emt 0:15:05]} 17. a4 {[%emt 0:01:37]} Qxc4 {[%emt 0:00:43]} 18. Nxc4 {[%emt 0:00:07]} f6 {[%emt 0:00:17]} 19. Na5 {[%emt 0:04:18]} Rdc8 {[%emt 0:01:49]} 20. Red1 {[%emt 0:01:03]} Kf7 {[%emt 0:02:13]} 21. Kf1 {[%emt 0:08:31]} Ke8 {[%emt 0:03:12]} 22. Ke2 {[%emt 0:00:05]} Ne6 {[%emt 0:00:13]} 23. Kd3 {[%emt 0:03:32]} Rab8 {[%emt 0:03:18]} 24. Kc2 {[%emt 0:02:56]} h5 {[%emt 0:01:39]} 25. Rd3 {[%emt 0:02:58]} Rc7 {[%emt 0:00:53]} 26. g3 {[%emt 0:00:59]} g6 {[%emt 0:04:58]} 27. f4 {[%emt 0:23:25]} f5 {[%emt 0:02:16]} 28. fxe5 {[%emt 0:00:00]} fxe4 {[%emt 0:00:05]} 29. Rd2 {[%emt 0:00:00]} Ng7 {[%emt 0:00:38]} 30. Re1 {[%emt 0:00:00]} Nf5 {[%emt 0:01:10]} 31. Bg1 {[%emt 0:00:00]} e3 {[%emt 0:00:33]} 32. Rd3 {[%emt 0:00:00]} Bg5 {[%emt 0:01:49]} 33. Nc4 {[%emt 0:00:00]} Rcb7 {[%emt 0:04:36]} 34. h3 {[%emt 0:00:00]} Ke7 {[%emt 0:02:26]} 35. g4 {[%emt 0:00:00]} hxg4 {[%emt 0:00:05]} 36. hxg4 {[%emt 0:00:00]} Nh4 {[%emt 0:02:22]} 37. Bxe3 {[%emt 0:00:00]} Bxe3 {[%emt 0:00:07]} 38. Rexe3 {[%emt 0:00:00]} Rf8 {[%emt 0:00:40]} 39. Re4 {[%emt 0:00:00]} Rf1 {[%emt 0:01:22]} 40. Rd6 {[%emt 0:00:42]} Rf2+ {[%emt 0:00:33]} 41. Kb1 {[%emt 0:00:45]} Nf3 {[%emt 0:00:12]} 42. Re3 {[%emt 0:01:52]} g5 {[%emt 0:03:29]} 43. Ka2 {[%emt 0:00:34]} a5 {[%emt 0:00:38]} 44. Rf6 {[%emt 0:01:37]} Nd2 {[%emt 0:00:27]} 45. Rxf2 {[%emt 0:00:12]} Nxc4 {[%emt 0:00:00]} 46. Re4 {[%emt 0:03:48]} Nb6 {[%emt 0:00:07]} 47. Rf6 {[%emt 0:00:00]} c4 {[%emt 0:00:20]} 48. Ka3 {[%emt 0:00:00]} Nd5 {[%emt 0:00:35]} 49. Rxc6 {[%emt 0:00:00]} Rb3+ {[%emt 0:00:03]} 50. Ka2 {[%emt 0:00:00]} Rxc3 {[%emt 0:00:02]} 51. bxc3 {[%emt 0:00:00]} Nxc3+ {[%emt 0:00:01]} 52. Kb2 {[%emt 0:00:09]} Nxe4 {[%emt 0:00:01]} 53. Rxc4 {[%emt 0:00:09]} Nf2 {[%emt 0:00:01]} 54. Kc3 {[%emt 0:01:19]} Ke6 {[%emt 0:00:07]} 55. Kd4 {[%emt 0:00:37]} Nxg4 {[%emt 0:00:02]} 56. Rc5 {[%emt 0:00:54]} Nh2 {[%emt 0:00:32]} 57. Ke4 {[%emt 0:00:10]} Nf1 {[%emt 0:00:38]} 58. Rc6+ {[%emt 0:00:07]} Kd7 {[%emt 0:01:17]} 59. Rd6+ {[%emt 0:00:06]} Ke7 {[%emt 0:00:14]} 60. Rg6 {[%emt 0:00:20]} Ng3+ {[%emt 0:02:15]} 61. Kd5 {[%emt 0:00:16]} Ne2 {[%emt 0:00:03]} 62. Rg7+ {[%emt 0:03:53]} Kf8 63. Rxg5 {[%emt 0:00:00]} Nc3+ {[%emt 0:00:07]} 64. Ke6 {[%emt 0:00:00]} Nxa4 {[%emt 0:00:01]} 65. Kd6 {[%emt 0:00:00]} Nc3 {[%emt 0:00:06]} 66. Kd7 {[%emt 0:00:00]} Ne4 {[%emt 0:01:10]} 67. Rf5+ {[%emt 0:00:00]} Kg7 {[%emt 0:00:00]} 68. e6 {[%emt 0:00:13]} Kg6 {[%emt 0:00:16]} 69. Rxa5 {[%emt 0:00:31]} Nf6+ {[%emt 0:00:52]} 70. Kd8 {[%emt 0:00:18]} Kg7 {[%emt 0:00:14]} 71. e7 {[%emt 0:00:19]} Kf7 {[%emt 0:00:08]} 72. Rf5 {[%emt 0:00:08]} 1-0